Cogmind - Beta 16 @@@ ROGUE MODE // 2025.11.14 @ 18:12:58 Player: ktur Result: Destroyed by D0-P9J(R) with Subdweller Beam Cannon Performance ------------- Evolutions (0) 0 Regions Visited (2) 400 Robots Destroyed (33) 165 Value Destroyed (899) 899 Prototype IDs (12) 240 Alien Tech Used (0) 0 Bonus (0) 0 TOTAL SCORE: 1704 Bonus ------- None Cogmind --------- Core Integrity 0/250 Matter 69/300 Energy 11/100 System Corruption 0% Temperature Cool (9) Movement Treading (260) Ox1 Location -10/Subcaves Parts ------- > --- POWER (1) -------- Subdweller Power Source > --- PROPULSION (2) --- Spiked Treads Subdweller Monowheel > --- UTILITY (2) ------ Cobbler Unit > --- WEAPON (2) ------- Subdweller Beam Cannon Subdweller Beam Cannon > --- INVENTORY (5) ---- Gun Armor Powered Cannon Subdweller Shrapnel Launcher Multitool Peak State ------------ > --- POWER ------------ Subdweller Power Source > --- PROPULSION ------- Spiked Treads Subdweller Monowheel > --- UTILITY ---------- Cobbler Unit > --- WEAPON ----------- Subdweller Beam Cannon Subdweller Beam Cannon > --- INVENTORY -------- Gun Armor Powered Cannon Subdweller Shrapnel Launcher Multitool [Rating: 16] Favorites ----------- Power Subdweller Power Source Engine Subdweller Power Source Propulsion Spiked Treads Treads Spiked Treads Wheel Subdweller Monowheel Utility Small Storage Unit Device Cobbler Unit Storage Small Storage Unit Weapon Subdweller Beam Cannon Energy Gun Subdweller Laser Energy Cannon Subdweller Beam Cannon Ballistic Gun Assault Rifle Launcher Subdweller Shrapnel Launcher Special Weapon Mining Laser Impact Weapon Makeshift Hammer Build | -11 -10 -10 ------- Run | Yrd Mat Sub Slots Evolved . | . . . Power . | . . . Propulsion . | . . . Utility . | . . . Weapon . | . . . Parts Attached 28 | 6 . 22 Power 5 | 1 . 4 Engine 5 | 1 . 4 Core . | . . . Reactor . | . . . Propulsion 8 | 2 . 6 Treads 5 | 2 . 3 Leg . | . . . Wheel 3 | . . 3 Hover . | . . . Flight . | . . . Utility 2 | 1 . 1 Device 1 | . . 1 Storage 1 | 1 . . Processor . | . . . Hackware . | . . . Protection . | . . . Artifact . | . . . Weapon 13 | 2 . 11 Energy Gun 2 | . . 2 Energy Cannon 4 | . . 4 Ballistic Gun 4 | 2 . 2 Ballistic Cannon . | . . . Launcher 1 | . . 1 Special Weapon 1 | . . 1 Impact Weapon 1 | . . 1 Slashing Weapon . | . . . Piercing Weapon . | . . . Special Melee Weapon . | . . . Unidentified Prototypes . | . . . Parts Lost 6 | . . 6 Power 1 | . . 1 Propulsion 4 | . . 4 Utility . | . . . Weapon 1 | . . 1 Highest Loss Streak 2 | . . 2 To Critical Strikes . | . . . Average Backups 5 | 2 5 5 Power . | . 1 . Propulsion . | 1 2 . Utility 1 | . . 1 Weapon 2 | . 2 2 Tool/Special . | . . . Unused Backups 8 | . . 8 Power . | . . . Propulsion 1 | . . 1 Utility 1 | . . 1 Weapon 4 | . . 4 Tool/Special 2 | . . 2 Average Slot Usage (%) 84 | . 85 84 Engine 13 | . 14 13 Treads 17 | . 28 17 Wheel 9 | . . 10 Device 6 | . . 7 Storage 7 | . 14 6 Energy Gun 2 | . . 2 Energy Cannon 19 | . . 20 Ballistic Gun 3 | . 28 2 Impact Weapon 1 | . . 1 Peak Build Rating 16 | 6 6 16 Average Rating 13 | 4 6 13 On Entrance 4 | . 6 6 Avg Prop Armor Cover (%) 4 | . . 4 Naked Turns . | . . . Heaviest Build 33 | 14 14 33 Greatest Support 40 | 40 40 40 Greatest Overweight (x) 1 | . . 1 Average Overweight (x) . | . . . Largest Inventory Capacity 8 | 8 8 8 Average Capacity 6 | 7 8 6 Most Carried 8 | 5 5 8 Average Carried 6 | 2 5 6 Final Capacity 8 | 8 8 5 Final Carried 5 | 5 5 5 Class Distribution -------------------- 80% | Mutant 12% | Cobbler-Mutant 7% | Scavenger-Mutant Dominant Class ---------------- Mutant | -10/Materials Mutant | -10/Subcaves Resources | -11 -10 -10 ----------- Run | Yrd Mat Sub Matter Collected 1350 | 206 . 1144 Remotely . | . . . Salvage Created 960 | 16 . 944 Parts 86 | 4 3 79 Haulers Intercepted . | . . . Recyclers Shooed . | . . . Parts Field Recycled . | . . . Retrieved Matter . | . . . Parts Self-Destructed 25 | . . 25 Prevented . | . . . Parts Restored . | . . . Kills | -11 -10 -10 ------- Run | Yrd Mat Sub Combat Hostiles Destroyed 28 | . . 28 Guns 14 | . . 14 Cannons 14 | . . 14 Classes Destroyed 8 | 2 1 5 Worker 1 | 1 . . Builder 1 | . 1 . Tunneler 1 | 1 . . Turret 2 | . . 2 Swarmer 10 | . . 10 Grunt 2 | . . 2 Sentry 1 | . . 1 Subdweller 15 | . . 15 Best Kill Streak 5 | 1 1 5 Combat Bots Only 4 | . . 4 Max Kills in Single Turn 1 | 1 1 1 Gunslinging . | . . . Exploded . | . . . Melee . | . . . Uniques/NPCs Destroyed . | . . . Combat | -11 -10 -10 -------- Run | Yrd Mat Sub Hostile Shots Fired 138 | . . 138 Missed 38 | . . 38 Hits 100 | . . 100 Projectile 100 | . . 100 AOE 2 | . . 2 Damage Taken 1769 | . . 1769 Core 251 | . . 251 Absorbed by Shields . | . . . Core Remaining (%) 100 | 100 . . Volleys Fired 98 | 1 1 96 Largest 2 | 2 2 2 Hottest 160 | 40 40 160 Shots Fired 155 | 2 2 151 Gun 83 | 2 2 79 Cannon 54 | . . 54 Launcher 3 | . . 3 Special 15 | . . 15 Kinetic 65 | 2 2 61 Thermal 90 | . . 90 Explosive . | . . . Electromagnetic . | . . . Robot Hit Streak 22 | 1 . 22 Robot Miss Streak 4 | . 2 4 Penetration Max . | . . . Secondary Targets 1 | . . 1 Max Gunslinging Chain 1 | . . 1 Shots Hit Robots 100 | 1 . 99 Core Hits 41 | 1 1 39 Critical Kills . | . . . Critical Parts Destroyed . | . . . Critical Strikes . | . . . Melee Attacks 14 | . . 14 Impact 14 | . . 14 Slashing . | . . . Piercing . | . . . Sneak Attacks . | . . . Combat Hostiles . | . . . Follow-up Attacks . | . . . Damage Inflicted 2395 | 22 1 2372 Guns 908 | 11 . 897 Cannons 1209 | . . 1209 Explosions 266 | . . 266 Melee . | . . . Ramming 12 | 11 1 . Kinetic 815 | 11 . 804 Thermal 1568 | . . 1568 Explosive . | . . . Electromagnetic . | . . . Impact . | . . . Slashing . | . . . Piercing . | . . . Highest Corruption . | . . . Average Corruption . | . . . Corruption Purged . | . . . Corruption Blocked . | . . . Overload Shots . | . . . Overflow Damage 23 | . . 23 Projectiles 9 | . . 9 Explosions 14 | . . 14 Melee . | . . . Knockbacks . | . . . Impact . | . . . Kinetic . | . . . Secondary . | . . . Self-Inflicted Damage . | . . . Shots . | . . . Rammed 4 | 4 . . Targets Rammed 6 | 5 1 . Kicked . | . . . Crushed 2 | 1 1 . Highest Temperature 263 | . . 263 Average Temperature 68 | . . 68 Received Heat Transfer 339 | . . 339 Effects 1 | . . 1 Energy Bleed 1 | . . 1 Siege Activations . | . . . Martial Activations . | . . . Shielding Activations . | . . . Robots Disrupted . | . . . Combat Hostiles . | . . . Robots Corrupted . | . . . Combat Hostiles . | . . . Parts Fried . | . . . Impact Corruptions . | . . . Robots Melted . | . . . Combat Hostiles . | . . . Parts Melted 4 | . . 4 Heat Transferred 2053 | . . 2053 Parts Sabotaged . | . . . Parts Stolen . | . . . Parts Stripped . | . . . Power Chain Reactions . | . . . Alert | -11 -10 -10 ------- Run | Yrd Mat Sub Maximum Alert Level . | . . . Low Security (%) 100 | 100 100 . Level 1 . | . . . Level 2 . | . . . Level 3 . | . . . Level 4 . | . . . Level 5 . | . . . High Security . | . . . Max Security . | . . . Peak Influence 5 | 5 3 . Initial 3 | . 3 . Average . | . . . Influence Increases 376 | 10 6 360 Destroy 0b10 Robot/C 300 | . . 300 Destroy 0b10 Robot/NC 15 | 10 5 . Destroy Leader 30 | . . 30 Destroy Structure 1 | . 1 . Lose Combat Pursuer 30 | . . 30 Influence Decreases 334 | 5 6 323 Entered New Map 5 | . 2 3 Time Decay 279 | 5 4 270 Lost Part 50 | . . 50 Squads Dispatched . | . . . Investigation . | . . . Extermination . | . . . Reinforcement . | . . . Assault . | . . . Garrison . | . . . Intercept . | . . . Searches Triggered . | . . . Construction Impeded . | . . . Haulers Reinforced . | . . . Active Scanning Responses . | . . . Cargo Convoy Interrupts . | . . . Stealth | -11 -10 -10 --------- Run | Yrd Mat Sub Distress Signals . | . . . Communications Jammed . | . . . Distress Signals . | . . . Times Spotted 34 | . 2 32 Peak Tracking Total 5 | . 1 5 Tactical Retreats 1 | . . 1 Traps | -11 -10 -10 ------- Run | Yrd Mat Sub Traps Triggered 2 | . . 2 Indirectly . | . . . Trap Hack Attempts . | . . . Triggered . | . . . Disarmed . | . . . Reprogrammed . | . . . Reused . | . . . Traps Extracted . | . . . Installed . | . . . Triggered . | . . . Machines | -11 -10 -10 ---------- Run | Yrd Mat Sub Machines Disabled 5 | . . 5 Max in Single Turn 2 | . . 2 Machines Repaired . | . . . Machines Dismantled . | . . . Machines Sabotaged . | . . . Overloaded Fab Kills . | . . . Hacking | -11 -10 -10 --------- Run | Yrd Mat Sub Machines Accessed 1 | . . 1 Terminals . | . . . Fabricators . | . . . Repair Stations . | . . . Recycling Units . | . . . Scanalyzers . | . . . Garrison Access . | . . . Total Hacks 1 | . . 1 Successful 1 | . . 1 Failed . | . . . Catastrophic . | . . . Database Lockouts . | . . . Manual . | . . . Terminals . | . . . Fabricators . | . . . Repair Stations . | . . . Recycling Units . | . . . Scanalyzers . | . . . Garrison Access . | . . . Terminal Hacks 1 | . . 1 Proto ID Catalog 1 | . . 1 Fabricator Hacks . | . . . Repair Station Hacks . | . . . Recycling Unit Hacks . | . . . Scanalyzer . | . . . Garrison Access Hacks . | . . . Unauthorized Hacks . | . . . Terminals . | . . . Fabricators . | . . . Repair Stations . | . . . Recycling Units . | . . . Scanalyzers . | . . . Garrison Access . | . . . Data Cores Recovered . | . . . Used . | . . . Hacking Detections . | . . . Full Trace Events . | . . . Feedback Events . | . . . Feedback Blocked . | . . . Robot Schematics Acquired . | . . . Robots Built . | . . . Authchips . | . . . Time . | . . . Total Robot Build Rating . | . . . Part Schematics Acquired . | . . . Parts Built . | . . . Authchips . | . . . Time . | . . . Total Part Build Rating . | . . . Part Studies Acquired . | . . . Parts Repaired . | . . . Time . | . . . Parts Recycled . | . . . Recycled Matter . | . . . Retrieved Matter . | . . . Retrieved Components . | . . . Parts Scanalyzed . | . . . Part Schematics Acquired . | . . . Parts Damaged . | . . . Bothacking | -11 -10 -10 ------------ Run | Yrd Mat Sub Used RIF Installer . | . . . Robots Hacked . | . . . Non-combat . | . . . Combat . | . . . Robot Hacks Applied . | . . . Relay Couplers Released . | . . . Fabnet Peak Effective % . | . . . Robots Rewired . | . . . Allies Hacked . | . . . Hacks Repelled . | . . . Allies | -11 -10 -10 -------- Run | Yrd Mat Sub Total Allies . | . . . Largest Group . | . . . Highest-Rated Group . | . . . Highest-Rated Ally . | . . . Total Orders . | . . . Ally Attacks . | . . . Total Damage . | . . . Kills . | . . . Allies Corrupted . | . . . Allies Melted . | . . . Intel | -11 -10 -10 ------- Run | Yrd Mat Sub Active Infowar (turns) . | . . . Robot Analysis Total . | . . . Derelict Logs Recovered 1 | . . 1 Drone Launches . | . . . Drone Recoveries . | . . . Exploration | -11 -10 -10 ------------- Run | Yrd Mat Sub Turns Passed 6289 | 107 184 5998 Spaces Moved 2409 | 52 112 2245 Core 2 | 2 . . Treads 2373 | 50 112 2211 Legs . | . . . Wheels 34 | . . 34 Hover . | . . . Flight . | . . . Fastest Speed 50 | 50 160 90 Average Speed 215 | 155 160 220 Slowest Speed 260 | 160 160 260 Overloaded Moves . | . . . Propulsion Burnouts . | . . . Robots Hopped . | . . . Potential Cave-ins . | . . . Cave-ins Triggered . | . . . Exploration Rate (%) 34 | 5 17 80 Regions Visited 2 Branch Regions 1 Pre-discovered Areas 1 | . . 1 Known Exits Taken . | . . . Unknown Exits Taken 2 | 1 1 . Scrap Searched 4 | . . 4 Spaces Dug . | . . . Terrain Destroyed 37 | . . 37 Melee . | . . . Projectile 2 | . . 2 AOE 35 | . . 35 Terrain Rammed . | . . . Walls Destroyed . | . . . Machines Disabled . | . . . Actions | -11 -10 -10 --------- Run | Yrd Mat Sub Total 3287 | 72 114 3101 Wait 665 | . 1 664 Move 2409 | 52 112 2245 Hop . | . . . Pick Up 22 | 9 . 13 Fast Attach 14 | 2 . 12 Attach 8 | 4 . 4 Detach 4 | . . 4 Swap 24 | . . 24 Drop 25 | . . 25 Fire 98 | 1 1 96 Melee 14 | . . 14 Ram . | . . . Kick . | . . . Crush 4 | 4 . . Escape Stasis . | . . . Rewire . | . . . Trap . | . . . Miscellaneous . | . . . Route ------- -11/Scrapyard -10/Materials -10/Subcaves (discovered 3 exits: [*Mat] / [*Rec] / [*Scr]) History --------- Turn | Location | Event 2 | -11/Scrapyard | Met Revision 17 13 | -11/Scrapyard | Discovered new exit (range 14) 108 | -11/Scrapyard | Entered Materials 283 | -10/Materials | Discovered new exit (range 5) 292 | -10/Materials | Entered Subcaves 293 | -10/Subcaves | Approached by a straggling Scientist 298 | -10/Subcaves | Learned location of Zion (-6) 298 | -10/Subcaves | Met a Zionite searching for "candidates" 318 | -10/Subcaves | Build established: Mutant 664 | -10/Subcaves | Ambushed by angry Subdweller bent on revenge 871 | -10/Subcaves | Discovered new exit (range 13) 1039 | -10/Subcaves | Scientist uncovered a shortcut to Scraptown 1130 | -10/Subcaves | Discovered new exit (range 14) 1180 | -10/Subcaves | Ambushed by Subdwellers from Twisted Machinery 1205 | -10/Subcaves | Core integrity fell below 50% 1266 | -10/Subcaves | Shifting Twisted Machinery released Sub. Machine Gun 1309 | -10/Subcaves | Shifting Twisted Machinery released Sub. Monowheel 1343 | -10/Subcaves | Learned location of 1 exit from Materials 1706 | -10/Subcaves | Visited 4L-MR0's lab 1722 | -10/Subcaves | Found Gun Armor 1972 | -10/Subcaves | A Subdweller sparked back to life 1978 | -10/Subcaves | Ambushed by Subdweller buried in earth 2039 | -10/Subcaves | Found Powered Cannon 2296 | -10/Subcaves | Build established: Scavenger-Mutant 2745 | -10/Subcaves | Build established: Mutant 4151 | -10/Subcaves | A swath of the cavern ceiling suddenly collapsed 4420 | -10/Subcaves | Build established: Cobbler-Mutant 4722 | -10/Subcaves | Core integrity fell below 20% 5198 | -10/Subcaves | Build established: Mutant 5847 | -10/Subcaves | A swath of the cavern ceiling suddenly collapsed 6009 | -10/Subcaves | Shifting Twisted Machinery released Battle Cannon 6016 | -10/Subcaves | Shifting Twisted Machinery released Sub. Monowheel 6288 | -10/Subcaves | Ambushed by Subdweller buried in earth 6290 | -10/Subcaves | Destroyed by D0-P9J(R) with Subdweller Beam Cannon Last Messages --------------- 05107_ Cobbler Unit puts together Flamer. 05147_ Cobbler Unit puts together Battle Cannon. 05187_ Cobbler Unit puts together Shrapnel Trap. 05227_ Cobbler Unit puts together Battle Rifle. 05267_ Cobbler Unit puts together Sub. Machine Gun. 05360_ Sub. Power Source shoots sparks and powers down. 05438_ RS-MB9(R) destroyed. 05441_ XE-TSZ(R) destroyed. 05442_ O9-77B(O) collects matter. 05445_ AU-IKF(R) destroyed. 05445_ O9-77B(O) collects matter. 05447_ Acquired 49 matter. 05462_ O9-77B(O) puts together Sub. Beam Cannon. 05483_ Dropped Sub. Beam Cannon. 05502_ O9-77B(O) puts together Mak. Spear. A swath of the cavern ceiling suddenly collapses. Battle Cannon falls loose from the Twisted Machinery. Sub. Monowheel falls loose from the Twisted Machinery. 06281_ LA-J40(R) destroyed. 06289_ 5T-NQ6(R): "ARGHSUB!" Map ----- +----------------------------------------------------+ | ?????????????????????????????????????????????????? | | ?????????????????????????????????????????????????? | | ?????????????????????????????????????????????????? | | ?????????????????????????????????????????????????? | | ?????????????????????????????????????????????????? | | ?????????????????????????????????????????????????? | | ?????????????????????????????????????????????????? | | ?????????????????????????????????????????????????? | | ?????????????????????????????????????????????????? | | ?????????????????????????????????????????????????? | | ?????????????????????????????????????????????????? | | ?????????????????????????????????????????????????? | | ?????????????????????????????????????????????????? | | ?????????????????????????????????????????????????? | | ?????????????????????????????????????????????????? | | ?????????????????????????????????????????????????? | | ?????????????????????????????????????????????????? | | ?????????????????????????????????????????????????? | | ?????????????????????????????????????????????????? | | ????????????????????????###??????????????????????? | | ???????????????????????## ###?#??? #???????????? | | ???????????????????????# # # # #???????????? | | ?????????????????###??## *R #??????????? | | ????????????????## ##?# =%## #???????????????? | | ????????????????# #### R #????????????????????? | | ????????????????## # @;#?????????????????????? | | ????????????????# #?????????????????????? | | ????????????????# "#?????????????????????? | | ??????????????? ## "###???????????????????? | | ?????????????? ## ### " #???????????????????? | | ?????????????? ?##### " "#???????????????????? | | ?????????????? #???#" """#???????????????????? | | ??????????????# ???#### ""##???????????????????? | | ??????????????# #??##?# "##????????????????????? | | ??????????##### "??#"### ##????????????????????? | | ?????????#### ???#=#" ##???????????????????? | | ??????#####"#### ???#"]# ##??????????????????? | | ??????# "###"# ???##" #??????????????????? | | ??????## #"#"#"# ????## #??????????????????? | | ##?????# #""#""##????# ##??????????????????? | | ##??### "####"#???## ##??????????????????? | | #### "#"###### #??????????????????? | | ## "#" #??????????????????? | | ## ## #??????????????????? | | ### ## #??????????????????? | | ###?# ## ### ##??????????????????? | | #???# #### #?###???????????????????? | | ### #??# ##?## #???????????????????????? | | ##?## #?######### ##??????????????????????? | | ????### ##?????### #??????????????????????? | +----------------------------------------------------+ Best States ------------- Heat Dissipation 25 Energy Generation 15 Energy Capacity 250 Matter Stores 300 Matter Capacity 300 Sight Range 16 Terrain Scan Density 10 Evasion (%) 42 Recoil Reduction 2 Item Schematics ----------------- None Robot Schematics ------------------ None Fabricated ------------ Nothing Repaired ---------- Nothing Studied --------- None Alien Tech Used ----------------- None Achievements -------------- None Challenges ------------ None Game ------ Seed JunkGuidanceVibroblade Manual? 0 Play Time 00:18:21 Cumulative 828.4 hours Start 2025.11.14 @ 17:55:52 End 2025.11.14 @ 18:12:58 Sessions 1 Manual Loads 0 Difficulty Rogue Special Mode None Game No. 830 Rogue 830 Adventurer 0 Explorer 0 Win Type - Total 40 Types 15/4/11/2/0/0/5/2/1/0 Lore% 96 Gallery% 86 Achievement% 62 Wizard Run 0 Options --------- Layout 0 ASCII 0 Keyboard 0 Movement Numpad Keybinds 0 Fullscreen 1 Font 18/Smallcaps Map View 76x50 Zoom Use 0% Tactical HUD 1 Map Filters NONE Filters NONE Steam 1 RUN: f47eeeca-cc8a-4724-82f5-605cd78dcf46